Workbook

Sheet Données
A1: IDENTIFIANT | B1: TEMP (°C) | C1: PH | D1: INGRÉDIENT 1 | E1: INGRÉDIENT 2 | F1: INGRÉDIENT 3 | G1: INGRÉDIENT 4
A2: échantillon01 | B2: 127 | C2: 8.688544784 | D2: 19.25984958 | E2: 54.37103982 | F2: 0.8974314602 | G2: 27.78672703
A3: échantillon02 | B3: 130 | C3: 8.82393426 | D3: 19.60359422 | E3: 54.22233317 | F3: 0.5190923798 | G3: 28.07941551
A4: échantillon03 | B4: 127 | C4: 8.290224539 | D4: 18.26769386 | E4: 53.13412171 | F4: 0.7909709839 | G4: 26.4221274
A5: échantillon04 | B5: 131 | C5: 8.119589715 | D5: 19.15573327 | E5: 53.33829561 | F5: 0.8261735722 | G5: 27.83574393
A6: échantillon05 | B6: 128 | C6: 8.206742031 | D6: 19.23270007 | E6: 54.13231097 | F6: 0.5899844725 | G6: 27.46451353
A7: échantillon06 | B7: 130 | C7: 8.380651568 | D7: 19.43404613 | E7: 55.16642515 | F7: 0.9028004785 | G7: 27.43051182
A8: échantillon07 | B8: 132 | C8: 8.740912733 | D8: 18.84521633 | E8: 55.41444722 | F8: 0.90380391 | G8: 26.5600994
A9: échantillon08 | B9: 130 | C9: 8.106623776 | D9: 19.35723468 | E9: 53.90085934 | F9: 0.7115307978 | G9: 27.1144098
A10: échantillon09 | B10: 126 | C10: 8.977064915 | D10: 18.98749116 | E10: 54.21919755 | F10: 0.5494144306 | G10: 25.45747959
A11: échantillon10 | B11: 126 | C11: 8.002820367 | D11: 18.47817531 | E11: 53.35455321 | F11: 0.6717720812 | G11: 25.79168465
A12: échantillon11 | B12: 126 | C12: 8.807628734 | D12: 18.6875516 | E12: 55.84937031 | F12: 0.8348295373 | G12: 28.2069943
A13: échantillon12 | B13: 130 | C13: 8.956129778 | D13: 19.66557794 | E13: 55.77814358 | F13: 0.6477512229 | G13: 26.88336723
A14: échantillon13 | B14: 126 | C14: 8.036664195 | D14: 19.32748256 | E14: 55.23860615 | F14: 0.6309589277 | G14: 28.84434441
A15: échantillon14 | B15: 130 | C15: 8.577634863 | D15: 18.55108895 | E15: 53.48285773 | F15: 0.8791662077 | G15: 29.69381292
A16: échantillon15 | B16: 132 | C16: 8.278850884 | D16: 18.61183991 | E16: 53.61056133 | F16: 0.6091831759 | G16: 26.94798266
A17: échantillon16 | B17: 126 | C17: 8.984860972 | D17: 18.40954856 | E17: 53.76917392 | F17: 0.6708197668 | G17: 26.09620845
A18: échantillon17 | B18: 130 | C18: 8.898392251 | D18: 18.67831841 | E18: 53.41638708 | F18: 0.7364404771 | G18: 25.21243923
A19: échantillon18 | B19: 130 | C19: 8.229004932 | D19: 19.60026667 | E19: 54.1139052 | F19: 0.5573988331 | G19: 25.61850114
A20: échantillon19 | B20: 127 | C20: 8.129502446 | D20: 19.60407779 | E20: 53.20116571 | F20: 0.5293397477 | G20: 27.35561388
A21: échantillon20 | B21: 131 | C21: 8.668329091 | D21: 18.54206627 | E21: 54.1652831 | F21: 0.8681783645 | G21: 27.72296779
A22: échantillon21 | B22: 129 | C22: 8.577400578 | D22: 19.14123753 | E22: 54.66776934 | F22: 0.7607252238 | G22: 29.97408444
A23: échantillon22 | B23: 125 | C23: 8.88759289 | D23: 19.97953727 | E23: 53.18327491 | F23: 0.8894010726 | G23: 25.16544389
A24: échantillon23 | B24: 125 | C24: 8.052871883 | D24: 18.16475751 | E24: 53.30523184 | F24: 0.5480053536 | G24: 29.16104451
A25: échantillon24 | B25: 132 | C25: 8.553522018 | D25: 18.1021335 | E25: 54.29967411 | F25: 0.8983303597 | G25: 25.44802145
A26: échantillon25 | B26: 129 | C26: 8.596396721 | D26: 18.4158425 | E26: 55.95654561 | F26: 0.9039520454 | G26: 25.86223153
A27: échantillon26 | B27: 129 | C27: 8.305860435 | D27: 19.78856991 | E27: 53.47783084 | F27: 0.6527894506 | G27: 29.91966553
A28: échantillon27 | B28: 126 | C28: 8.450946267 | D28: 18.48103763 | E28: 55.84684414 | F28: 0.6822621009 | G28: 27.70223507

Sheet ACP
B1: XLSTAT 2023.2.0.1412 - Analyse en Composantes Principales (ACP) - Début : 11/08/2023 à 10:57:57 / Fin : 11/08/2023 à 10:58:37 / Microsoft Excel 16.016626
B2: Tableau observations/variables : Classeur = Automatisation_1.xlsm / Feuille = Données / Plage = 'Données'!$B:$G / 27 lignes et 6 colonnes
B3: Libellés des observations : Classeur = Automatisation_1.xlsm / Feuille = Données / Plage = 'Données'!$A:$A / 27 lignes et 1 colonne
B4: Type d'ACP : Corrélation
B5: Filtrer les facteurs : Nombre maximum = 6
B6: Normalisation : (n)
B7: Type de biplot : Biplot de corrélation / Coefficient = n/p
B12: Analyse en Composantes Principales :
B14: Valeurs propres :
C16: F1 | D16: F2 | E16: F3 | F16: F4 | G16: F5 | H16: F6
B17: Valeur propre | C17: 1.698175164 | D17: 1.136325939 | E17: 1.082729455 | F17: 0.9594088698 | G17: 0.6209336081 | H17: 0.5024269641
B18: Variabilité (%) | C18: 28.3029194 | D18: 18.93876564 | E18: 18.04549092 | F18: 15.99014783 | G18: 10.34889347 | H18: 8.373782735
B19: % cumulé | C19: 28.3029194 | D19: 47.24168504 | E19: 65.28717597 | F19: 81.2773238 | G19: 91.62621727 | H19: 100
B41: Vecteurs propres :
C43: F1 | D43: F2 | E43: F3 | F43: F4 | G43: F5 | H43: F6
B44: TEMP (°C) | C44: 0.2911061365 | D44: 0.3762734239 | E44: -0.40530229 | F44: 0.6584817668 | G44: -0.3314713444 | H44: 0.2567763465
B45: PH | C45: 0.5292864768 | D45: -0.1254637054 | E45: 0.4976148477 | F45: 0.03560479521 | G45: 0.2652640075 | H45: 0.6203720274
B46: INGRÉDIENT 1 | C46: -0.2305813896 | D46: 0.4068065801 | E46: 0.601288526 | F46: 0.495229746 | G46: 0.2466536999 | H46: -0.3371975514
B47: INGRÉDIENT 2 | C47: 0.41944049 | D47: 0.4276672538 | E47: 0.3036785916 | F47: -0.4222580756 | G47: -0.5532133908 | H47: -0.2541707501
B48: INGRÉDIENT 3 | C48: 0.5649915761 | D48: 0.1322601618 | E48: -0.3253772979 | F48: -0.05141074399 | G48: 0.5963037956 | H48: -0.4463183856
B49: INGRÉDIENT 4 | C49: -0.2946174806 | D49: 0.690502386 | E49: -0.168732192 | F49: -0.3727420195 | G49: 0.3119301749 | H49: 0.4143662575
B52: Coordonnées des variables :
C54: F1 | D54: F2 | E54: F3 | F54: F4 | G54: F5 | H54: F6
B55: TEMP (°C) | C55: 0.3793521964 | D55: 0.4011021644 | E55: -0.4217344064 | F55: 0.6449790653 | G55: -0.2611972337 | H55: 0.1820084222
B56: PH | C56: 0.6897346442 | D56: -0.1337425409 | E56: 0.5177895796 | F56: 0.03487469007 | G56: 0.2090262888 | H56: 0.4397326132
B57: INGRÉDIENT 1 | C57: -0.3004799475 | D57: 0.4336500784 | E57: 0.625666486 | F57: 0.4850746593 | G57: 0.1943614891 | H57: -0.2390126471
B58: INGRÉDIENT 2 | C58: 0.54658989 | D58: 0.4558872624 | E58: 0.3159905919 | F58: -0.413599332 | G58: -0.4359285042 | H58: -0.1801615211
B59: INGRÉDIENT 3 | C59: 0.7362634052 | D59: 0.1409874676 | E59: -0.338569026 | F59: -0.05035652508 | G59: 0.469883459 | H59: -0.3163597669
B60: INGRÉDIENT 4 | C60: -0.3839279711 | D60: 0.7360658073 | E60: -0.1755730786 | F60: -0.3650986428 | G60: 0.245798921 | H60: 0.2937114331
B63: Corrélations entre les variables et les facteurs :
C65: F1 | D65: F2 | E65: F3 | F65: F4 | G65: F5 | H65: F6
B66: TEMP (°C) | C66: 0.3793521964 | D66: 0.4011021644 | E66: -0.4217344064 | F66: 0.6449790653 | G66: -0.2611972337 | H66: 0.1820084222
B67: PH | C67: 0.6897346442 | D67: -0.1337425409 | E67: 0.5177895796 | F67: 0.03487469007 | G67: 0.2090262888 | H67: 0.4397326132
B68: INGRÉDIENT 1 | C68: -0.3004799475 | D68: 0.4336500784 | E68: 0.625666486 | F68: 0.4850746593 | G68: 0.1943614891 | H68: -0.2390126471
B69: INGRÉDIENT 2 | C69: 0.54658989 | D69: 0.4558872624 | E69: 0.3159905919 | F69: -0.413599332 | G69: -0.4359285042 | H69: -0.1801615211
B70: INGRÉDIENT 3 | C70: 0.7362634052 | D70: 0.1409874676 | E70: -0.338569026 | F70: -0.05035652508 | G70: 0.469883459 | H70: -0.3163597669
B71: INGRÉDIENT 4 | C71: -0.3839279711 | D71: 0.7360658073 | E71: -0.1755730786 | F71: -0.3650986428 | G71: 0.245798921 | H71: 0.2937114331
B93: Coordonnées des observations :
C95: F1 | D95: F2 | E95: F3 | F95: F4 | G95: F5 | H95: F6
B96: échantillon01 | C96: 0.6641705427 | D96: 0.3706721326 | E96: 0.4653900649 | F96: -0.428923717 | G96: 1.313110719 | H96: -0.4137946025
B97: échantillon02 | C97: -0.5921775261 | D97: 0.7834605725 | E97: 1.352989604 | F97: 0.9251751477 | G97: -0.3894592264 | H97: 1.366290667
B98: échantillon03 | C98: -0.3055375619 | D98: -1.578395415 | E98: -1.262517417 | F98: -0.4165932301 | G98: 0.4999309985 | H98: -0.2670510842
B99: échantillon04 | C99: -0.5030244324 | D99: 0.6587031287 | E99: -1.444732446 | F99: 1.083222392 | G99: 0.5177927892 | H99: -0.4587715213
B100: échantillon05 | C100: -1.334873751 | D100: 0.1355918836 | E100: 0.2048669985 | F100: 0.1004102935 | G100: -0.5440590972 | H100: -0.22574697
B101: échantillon06 | C101: 0.930688227 | D101: 1.334308054 | E101: -0.07060825953 | F101: 0.3052358223 | G101: 0.153566532 | H101: -1.123643067
B102: échantillon07 | C102: 2.344460692 | D102: 0.7737694998 | E102: -0.3464022562 | F102: 0.5050628899 | G102: -0.4521125365 | H102: -0.1480176776
B103: échantillon08 | C103: -0.8155851682 | D103: 0.4467303638 | E103: -0.5053562036 | F103: 0.9468879106 | G103: -0.2628990756 | H103: -0.7125621941
B104: échantillon09 | C104: 0.07995334191 | D104: -1.671821265 | E104: 1.865303931 | F104: -0.1246604987 | G104: -0.3940230305 | H104: 0.7238964556
B105: échantillon10 | C105: -1.274497806 | D105: -1.79592245 | E105: -0.8564124622 | F105: -0.4390234762 | G105: -0.2980450689 | H105: -0.9246846596
B106: échantillon11 | C106: 1.307447235 | D106: 0.5582092593 | E106: 0.7853457023 | F106: -2.011508289 | G106: 0.2138829556 | H106: -0.01676167235
B107: échantillon12 | C107: 1.109395028 | D107: 1.051016727 | E107: 1.978514073 | F107: 0.5424478261 | G107: -0.8869264681 | H107: 0.3717942552
B108: échantillon13 | C108: -1.525131849 | D108: 1.172061704 | E108: 0.5123787001 | F108: -1.313099737 | G108: -0.5302732502 | H108: -0.8875004164
B109: échantillon14 | C109: 0.2918988494 | D109: 0.8787551165 | E109: -1.527585847 | F109: -0.2968859085 | G109: 1.328240577 | H109: 1.02884719
B110: échantillon15 | C110: -0.4778562037 | D110: -0.1690899761 | E110: -1.263758531 | F110: 1.084296921 | G110: -1.075123857 | H110: 0.6956530356
B111: échantillon16 | C111: 0.5131934803 | D111: -1.893010567 | E111: 0.7076626007 | F111: -0.6646562561 | G111: 0.3009134481 | H111: 1.011473568
B112: échantillon17 | C112: 1.073385582 | D112: -1.513869521 | E112: -0.02305422244 | F112: 1.12474179 | G112: 0.07007872228 | H112: 0.753958453
B113: échantillon18 | C113: -0.9562598005 | D113: -0.2003491498 | E113: 0.5829435822 | F113: 1.540404547 | G113: -1.194465853 | H113: -0.6116459972
B114: échantillon19 | C114: -2.415297206 | D114: -0.2705035752 | E114: 0.5321833298 | F114: 0.6239098647 | G114: -0.01762058512 | H114: -0.2953655097
B115: échantillon20 | C115: 1.255975771 | D115: 0.3506485715 | E115: -1.087636824 | F115: 0.2076753969 | G115: 0.35288808 | H115: 0.5945155628
B116: échantillon21 | C116: -0.1051637075 | D116: 1.734915845 | E116: -0.034995423 | F116: -0.6237641961 | G116: 0.5635076418 | H116: 0.6880830743
B117: échantillon22 | C117: 0.3911291694 | D117: -1.345003835 | E117: 1.884346227 | F117: 0.9144744568 | G117: 2.213984257 | H117: -1.119168159
B118: échantillon23 | C118: -2.433856089 | D118: -0.720419909 | E118: -1.06685013 | F118: -1.836688334 | G118: -0.02900034676 | H118: 0.6696842404
B119: échantillon24 | C119: 2.048024602 | D119: -0.7889233528 | E119: -1.699260375 | F119: 0.6092985689 | G119: -0.5436415322 | H119: -0.04286341255
B120: échantillon25 | C120: 2.293530662 | D120: -0.08712198953 | E120: -0.2465760839 | F120: -0.859540458 | G120: -0.807868226 | H120: -0.860976257
B121: échantillon26 | C121: -1.827414136 | D121: 1.641976737 | E121: 0.1386201614 | F121: 0.5515812383 | G121: 0.8652591516 | H121: 0.4262732089
B122: échantillon27 | C122: 0.2634220551 | D122: 0.143611412 | E122: 0.4252015061 | F122: -2.049480965 | G122: -0.9676377171 | H122: -0.2219165106

Sheet XLSTAT_20230811_105755_1_HID3 (hidden)
A1: 0.8047275316 | B1: 0.8508661811 | C1: 0.5096691742 | D1: 0.3477270502 | E1: -0.8946337758 | F1: 1.368207212 | G1: 0.447256985 | H1: -0.4379032781
A2: 1.463148132 | B2: -0.2837107728 | C2: -0.4544233917 | D2: 0.7349633543 | E2: 1.098397569 | F2: 0.07398038952 | G2: 1.300272818 | H2: 0.9445437822
A3: -0.6374142254 | B3: 0.9199107333 | C3: -0.2344624864 | D3: -1.480690707 | E3: 1.327239045 | F3: 1.028998743 | G3: -1.213325715 | H3: -0.4253146512
A4: 1.159492253 | B4: 0.9670829241 | C4: -0.3860093614 | D4: 0.6179285568 | E4: 0.670317271 | F4: -0.8773766771 | G4: -1.388441066 | H4: 1.105899761
A5: 1.56185054 | B5: 0.2990795831 | C5: -1.024351366 | D5: 0.1271985714 | E5: -0.7182133627 | F5: -0.1068223211 | G5: 0.1968847274 | H5: 0.1025123931
A6: -0.8144342155 | B6: 1.561431371 | C6: 0.7141887054 | D6: 1.251712667 | E6: -0.3724467433 | F6: -0.7744911784 | G6: -0.06785713675 | H6: 0.3116259649
C7: 1.799085126 | D7: 0.7258721714 | G7: -0.3329053205 | H7: 0.5156364321
C8: -0.6258612697 | D8: 0.4190771791 | G8: -0.4856659156 | H8: 0.966711104
C9: 0.06135435272 | D9: -1.568333376 | G9: 1.792625746 | H9: -0.1272702788
C10: -0.978020256 | D10: -1.684752538 | G10: -0.8230439037 | H10: -0.4482144767
C11: 1.003304889 | D11: 0.5236553874 | G11: 0.7547461312 | H11: -2.053619416
C12: 0.8513241876 | D12: 0.985957438 | G12: 1.90142486 | H12: 0.5538040257
C13: -1.170351047 | D13: 1.099509575 | G13: 0.4924147933 | H13: -1.340589612
C14: 0.2239964527 | D14: 0.8243590432 | G14: -1.468066235 | H14: -0.3031012448
C15: -0.3666958425 | D15: -0.1586230889 | G15: -1.214518472 | H15: 1.106996786
C16: 0.3938128545 | D16: -1.775830776 | G16: 0.6800898108 | H16: -0.6785709015
C17: 0.8236913682 | D17: -1.420159049 | G17: -0.02215595647 | H17: 1.148288372
C18: -0.7338117418 | D18: -0.1879472794 | G18: 0.5602302426 | H18: 1.572653071
C19: -1.853443436 | D19: -0.2537590555 | G19: 0.5114477714 | H19: 0.6369714804
C20: 0.9638068734 | D20: 0.3289429734 | G20: -1.045259027 | H20: 0.2120231022
C21: -0.08070020651 | D21: 1.62752232 | G21: -0.03363188981 | H21: -0.6368227621
C22: 0.3001435143 | D22: -1.261746365 | G22: 1.810926094 | H22: 0.9336190713
C23: -1.867685094 | D23: -0.675824989 | G23: -1.025282249 | H23: -1.875139589
C24: 1.5716069 | D24: -0.7400879814 | G24: -1.633051776 | H24: 0.6220542956
C25: 1.760002595 | D25: -0.0817290262 | G25: -0.2369686939 | H25: -0.8775350237
C26: -1.402315511 | D26: 1.540336262 | G26: 0.1332190782 | H26: 0.5631286469
C27: 0.2021440167 | D27: 0.1347216806 | G27: 0.4086343005 | H27: -2.092387055

Sheet XLSTAT_20230811_105755_1_HID2 (hidden)
A1: 0.6641705427 | B1: 0.3706721326
A2: -0.5921775261 | B2: 0.7834605725
A3: -0.3055375619 | B3: -1.578395415
A4: -0.5030244324 | B4: 0.6587031287
A5: -1.334873751 | B5: 0.1355918836
A6: 0.930688227 | B6: 1.334308054
A7: 2.344460692 | B7: 0.7737694998
A8: -0.8155851682 | B8: 0.4467303638
A9: 0.07995334191 | B9: -1.671821265
A10: -1.274497806 | B10: -1.79592245
A11: 1.307447235 | B11: 0.5582092593
A12: 1.109395028 | B12: 1.051016727
A13: -1.525131849 | B13: 1.172061704
A14: 0.2918988494 | B14: 0.8787551165
A15: -0.4778562037 | B15: -0.1690899761
A16: 0.5131934803 | B16: -1.893010567
A17: 1.073385582 | B17: -1.513869521
A18: -0.9562598005 | B18: -0.2003491498
A19: -2.415297206 | B19: -0.2705035752
A20: 1.255975771 | B20: 0.3506485715
A21: -0.1051637075 | B21: 1.734915845
A22: 0.3911291694 | B22: -1.345003835
A23: -2.433856089 | B23: -0.720419909
A24: 2.048024602 | B24: -0.7889233528
A25: 2.293530662 | B25: -0.08712198953
A26: -1.827414136 | B26: 1.641976737
A27: 0.2634220551 | B27: 0.143611412
A28: 0.4653900649 | B28: -0.428923717
A29: 1.352989604 | B29: 0.9251751477
A30: -1.262517417 | B30: -0.4165932301
A31: -1.444732446 | B31: 1.083222392
A32: 0.2048669985 | B32: 0.1004102935
A33: -0.07060825953 | B33: 0.3052358223
A34: -0.3464022562 | B34: 0.5050628899
A35: -0.5053562036 | B35: 0.9468879106
A36: 1.865303931 | B36: -0.1246604987
A37: -0.8564124622 | B37: -0.4390234762
A38: 0.7853457023 | B38: -2.011508289
A39: 1.978514073 | B39: 0.5424478261
A40: 0.5123787001 | B40: -1.313099737
A41: -1.527585847 | B41: -0.2968859085
A42: -1.263758531 | B42: 1.084296921
A43: 0.7076626007 | B43: -0.6646562561
A44: -0.02305422244 | B44: 1.12474179
A45: 0.5829435822 | B45: 1.540404547
A46: 0.5321833298 | B46: 0.6239098647
A47: -1.087636824 | B47: 0.2076753969
A48: -0.034995423 | B48: -0.6237641961
A49: 1.884346227 | B49: 0.9144744568
A50: -1.06685013 | B50: -1.836688334
A51: -1.699260375 | B51: 0.6092985689
A52: -0.2465760839 | B52: -0.859540458
A53: 0.1386201614 | B53: 0.5515812383
A54: 0.4252015061 | B54: -2.049480965

Sheet XLSTAT_20230811_105755_1_HID1 (hidden)
A1: 1 | B1: =-3.1415926536+(A1-1)*0.0125915537 -> -3.141592654 | C1: =1*COS(B1)+0 -> -1 | D1: =1*SIN(B1)+0+0*COS(B1) -> 1.020682388e-11
A2: 2 | B2: -3.1290011 | C2: -0.9999207274 | D2: -0.01259122097
A3: 3 | B3: -3.116409546 | C3: -0.9996829223 | D3: -0.02518044567
A4: 4 | B4: -3.103817993 | C4: -0.9992866223 | D4: -0.03776567813
A5: 5 | B5: -3.091226439 | C5: -0.9987318903 | D5: -0.05034492303
A6: 6 | B6: -3.078634885 | C6: -0.9980188142 | D6: -0.06291618598
A7: 7 | B7: -3.066043331 | C7: -0.9971475071 | D7: -0.07547747389
A8: 8 | B8: -3.053451778 | C8: -0.9961181071 | D8: -0.0880267952
A9: 9 | B9: -3.040860224 | C9: -0.9949307774 | D9: -0.1005621603
A10: 10 | B10: -3.02826867 | C10: -0.9935857064 | D10: -0.1130815818
A11: 11 | B11: -3.015677117 | C11: -0.9920831071 | D11: -0.1255830747
A12: 12 | B12: -3.003085563 | C12: -0.9904232179 | D12: -0.138064657
A13: 13 | B13: -2.990494009 | C13: -0.9886063019 | D13: -0.1505243499
A14: 14 | B14: -2.977902456 | C14: -0.9866326472 | D14: -0.1629601778
A15: 15 | B15: -2.965310902 | C15: -0.9845025667 | D15: -0.1753701692
A16: 16 | B16: -2.952719348 | C16: -0.9822163981 | D16: -0.1877523566
A17: 17 | B17: -2.940127794 | C17: -0.9797745038 | D17: -0.2001047767
A18: 18 | B18: -2.927536241 | C18: -0.9771772711 | D18: -0.2124254711
A19: 19 | B19: -2.914944687 | C19: -0.9744251117 | D19: -0.2247124866
A20: 20 | B20: -2.902353133 | C20: -0.971518462 | D20: -0.2369638749
A21: 21 | B21: -2.88976158 | C21: -0.9684577827 | D21: -0.2491776938
A22: 22 | B22: -2.877170026 | C22: -0.9652435592 | D22: -0.2613520068
A23: 23 | B23: -2.864578472 | C23: -0.961876301 | D23: -0.2734848837
A24: 24 | B24: -2.851986919 | C24: -0.958356542 | D24: -0.285574401
A25: 25 | B25: -2.839395365 | C25: -0.9546848402 | D25: -0.2976186417
A26: 26 | B26: -2.826803811 | C26: -0.9508617778 | D26: -0.3096156965
A27: 27 | B27: -2.814212257 | C27: -0.9468879609 | D27: -0.3215636633
A28: 28 | B28: -2.801620704 | C28: -0.9427640195 | D28: -0.3334606476
A29: 29 | B29: -2.78902915 | C29: -0.9384906075 | D29: -0.3453047635
A30: 30 | B30: -2.776437596 | C30: -0.9340684023 | D30: -0.3570941329
A31: 31 | B31: -2.763846043 | C31: -0.9294981052 | D31: -0.3688268868
A32: 32 | B32: -2.751254489 | C32: -0.9247804407 | D32: -0.380501165
A33: 33 | B33: -2.738662935 | C33: -0.9199161567 | D33: -0.3921151165
A34: 34 | B34: -2.726071382 | C34: -0.9149060245 | D34: -0.4036669002
A35: 35 | B35: -2.713479828 | C35: -0.9097508384 | D35: -0.4151546844
A36: 36 | B36: -2.700888274 | C36: -0.9044514158 | D36: -0.4265766479
A37: 37 | B37: -2.68829672 | C37: -0.8990085968 | D37: -0.4379309797
A38: 38 | B38: -2.675705167 | C38: -0.8934232443 | D38: -0.4492158797
A39: 39 | B39: -2.663113613 | C39: -0.8876962439 | D39: -0.4604295587
A40: 40 | B40: -2.650522059 | C40: -0.8818285037 | D40: -0.4715702388
A41: 41 | B41: -2.637930506 | C41: -0.8758209538 | D41: -0.4826361538
A42: 42 | B42: -2.625338952 | C42: -0.8696745467 | D42: -0.4936255491
A43: 43 | B43: -2.612747398 | C43: -0.863390257 | D43: -0.5045366826
A44: 44 | B44: -2.600155845 | C44: -0.856969081 | D44: -0.5153678242
A45: 45 | B45: -2.587564291 | C45: -0.8504120367 | D45: -0.5261172567
A46: 46 | B46: -2.574972737 | C46: -0.8437201637 | D46: -0.5367832759
A47: 47 | B47: -2.562381183 | C47: -0.836894523 | D47: -0.5473641908
A48: 48 | B48: -2.54978963 | C48: -0.8299361968 | D48: -0.5578583237
A49: 49 | B49: -2.537198076 | C49: -0.8228462882 | D49: -0.5682640109
A50: 50 | B50: -2.524606522 | C50: -0.8156259213 | D50: -0.5785796025
A51: 51 | B51: -2.512014969 | C51: -0.8082762409 | D51: -0.5888034633
A52: 52 | B52: -2.499423415 | C52: -0.8007984123 | D52: -0.5989339721
A53: 53 | B53: -2.486831861 | C53: -0.7931936209 | D53: -0.6089695228
A54: 54 | B54: -2.474240308 | C54: -0.7854630726 | D54: -0.6189085244
A55: 55 | B55: -2.461648754 | C55: -0.7776079929 | D55: -0.628749401
A56: 56 | B56: -2.4490572 | C56: -0.7696296273 | D56: -0.6384905925
A57: 57 | B57: -2.436465646 | C57: -0.7615292407 | D57: -0.6481305545
A58: 58 | B58: -2.423874093 | C58: -0.7533081173 | D58: -0.6576677584
A59: 59 | B59: -2.411282539 | C59: -0.7449675605 | D59: -0.6671006924
A60: 60 | B60: -2.398690985 | C60: -0.7365088928 | D60: -0.6764278608
A61: 61 | B61: -2.386099432 | C61: -0.7279334552 | D61: -0.6856477848
A62: 62 | B62: -2.373507878 | C62: -0.7192426073 | D62: -0.6947590028
A63: 63 | B63: -2.360916324 | C63: -0.7104377269 | D63: -0.70376007
A64: 64 | B64: -2.348324771 | C64: -0.7015202101 | D64: -0.7126495596
A65: 65 | B65: =-3.1415926536+(A65-1)*0.0125915537 -> -2.335733217 | C65: =1*COS(B65)+0 -> -0.6924914707 | D65: =1*SIN(B65)+0+0*COS(B65) -> -0.721426062
A66: 66 | B66: -2.323141663 | C66: -0.6833529402 | D66: -0.7300881858
A67: 67 | B67: -2.310550109 | C67: -0.6741060674 | D67: -0.7386345578
A68: 68 | B68: -2.297958556 | C68: -0.6647523183 | D68: -0.7470638228
A69: 69 | B69: -2.285367002 | C69: -0.655293176 | D69: -0.7553746444
A70: 70 | B70: -2.272775448 | C70: -0.6457301402 | D70: -0.7635657051
A71: 71 | B71: -2.260183895 | C71: -0.636064727 | D71: -0.7716357062
A72: 72 | B72: -2.247592341 | C72: -0.6262984688 | D72: -0.7795833682
A73: 73 | B73: -2.235000787 | C73: -0.6164329141 | D73: -0.787407431
A74: 74 | B74: -2.222409234 | C74: -0.6064696269 | D74: -0.7951066543
A75: 75 | B75: -2.20981768 | C75: -0.5964101869 | D75: -0.8026798172
A76: 76 | B76: -2.197226126 | C76: -0.586256189 | D76: -0.8101257192
A77: 77 | B77: -2.184634572 | C77: -0.576009243 | D77: -0.8174431797
A78: 78 | B78: -2.172043019 | C78: -0.5656709736 | D78: -0.8246310385
A79: 79 | B79: -2.159451465 | C79: -0.5552430197 | D79: -0.8316881561
A80: 80 | B80: -2.146859911 | C80: -0.5447270348 | D80: -0.8386134136
A81: 81 | B81: -2.134268358 | C81: -0.5341246861 | D81: -0.8454057131
A82: 82 | B82: -2.121676804 | C82: -0.5234376546 | D82: -0.8520639775
A83: 83 | B83: -2.10908525 | C83: -0.5126676345 | D83: -0.8585871514
A84: 84 | B84: -2.096493697 | C84: -0.5018163335 | D84: -0.8649742005
A85: 85 | B85: -2.083902143 | C85: -0.4908854719 | D85: -0.8712241121
A86: 86 | B86: -2.071310589 | C86: -0.4798767828 | D86: -0.8773358954
A87: 87 | B87: -2.058719035 | C87: -0.4687920116 | D87: -0.8833085813
A88: 88 | B88: -2.046127482 | C88: -0.4576329157 | D88: -0.889141223
A89: 89 | B89: -2.033535928 | C89: -0.4464012644 | D89: -0.8948328957
A90: 90 | B90: -2.020944374 | C90: -0.4350988383 | D90: -0.9003826969
A91: 91 | B91: -2.008352821 | C91: -0.4237274294 | D91: -0.9057897469
A92: 92 | B92: -1.995761267 | C92: -0.4122888406 | D92: -0.9110531883
A93: 93 | B93: -1.983169713 | C93: -0.4007848854 | D93: -0.9161721867
A94: 94 | B94: -1.97057816 | C94: -0.3892173877 | D94: -0.9211459304
A95: 95 | B95: -1.957986606 | C95: -0.3775881814 | D95: -0.925973631
A96: 96 | B96: -1.945395052 | C96: -0.3658991104 | D96: -0.9306545229
A97: 97 | B97: -1.932803498 | C97: -0.3541520279 | D97: -0.9351878641
A98: 98 | B98: -1.920211945 | C98: -0.3423487963 | D98: -0.9395729358
A99: 99 | B99: -1.907620391 | C99: -0.330491287 | D99: -0.9438090428
A100: 100 | B100: -1.895028837 | C100: -0.3185813799 | D100: -0.9478955134
A101: 101 | B101: -1.882437284 | C101: -0.3066209633 | D101: -0.9518316999
A102: 102 | B102: -1.86984573 | C102: -0.2946119334 | D102: -0.955616978
A103: 103 | B103: -1.857254176 | C103: -0.2825561942 | D103: -0.9592507478
A104: 104 | B104: -1.844662623 | C104: -0.2704556571 | D104: -0.962732433
A105: 105 | B105: -1.832071069 | C105: -0.2583122406 | D105: -0.9660614817
A106: 106 | B106: -1.819479515 | C106: -0.2461278699 | D106: -0.969237366
A107: 107 | B107: -1.806887961 | C107: -0.2339044769 | D107: -0.9722595825
A108: 108 | B108: -1.794296408 | C108: -0.2216439994 | D108: -0.9751276519
A109: 109 | B109: -1.781704854 | C109: -0.2093483814 | D109: -0.9778411196
A110: 110 | B110: -1.7691133 | C110: -0.1970195722 | D110: -0.9803995554
A111: 111 | B111: -1.756521747 | C111: -0.1846595265 | D111: -0.9828025536
A112: 112 | B112: -1.743930193 | C112: -0.1722702039 | D112: -0.9850497332
A113: 113 | B113: -1.731338639 | C113: -0.1598535688 | D113: -0.987140738
A114: 114 | B114: -1.718747085 | C114: -0.1474115896 | D114: -0.9890752364
A115: 115 | B115: -1.706155532 | C115: -0.134946239 | D115: -0.9908529218
A116: 116 | B116: -1.693563978 | C116: -0.1224594934 | D116: -0.9924735122
A117: 117 | B117: -1.680972424 | C117: -0.1099533324 | D117: -0.9939367508
A118: 118 | B118: -1.668380871 | C118: -0.09742973887 | D118: -0.9952424056
A119: 119 | B119: -1.655789317 | C119: -0.08489069831 | D119: -0.9963902696
A120: 120 | B120: -1.643197763 | C120: -0.07233819875 | D120: -0.9973801607
A121: 121 | B121: -1.63060621 | C121: -0.05977423031 | D121: -0.9982119221
A122: 122 | B122: -1.618014656 | C122: -0.04720078496 | D122: -0.9988854218
A123: 123 | B123: -1.605423102 | C123: -0.03461985616 | D123: -0.9994005531
A124: 124 | B124: -1.592831548 | C124: -0.02203343854 | D124: -0.9997572343
A125: 125 | B125: -1.580239995 | C125: -0.009443527637 | D125: -0.9999554089
A126: 126 | B126: -1.567648441 | C126: 0.003147880496 | D126: -0.9999950454
A127: 127 | B127: -1.555056887 | C127: 0.01573878955 | D127: -0.9998761376
A128: 128 | B128: -1.542465334 | C128: 0.02832720329 | D128: -0.9995987043
A129: 129 | B129: =-3.1415926536+(A129-1)*0.0125915537 -> -1.52987378 | C129: =1*COS(B129)+0 -> 0.04091112589 | D129: =1*SIN(B129)+0+0*COS(B129) -> -0.9991627894
A130: 130 | B130: -1.517282226 | C130: 0.05348856224 | D130: -0.9985684622
A131: 131 | B131: -1.504690673 | C131: 0.06605751823 | D131: -0.9978158168
A132: 132 | B132: -1.492099119 | C132: 0.07861600112 | D132: -0.9969049726
A133: 133 | B133: -1.479507565 | C133: 0.09116201984 | D133: -0.9958360739
A134: 134 | B134: -1.466916011 | C134: 0.1036935853 | D134: -0.9946092903
A135: 135 | B135: -1.454324458 | C135: 0.1162087106 | D135: -0.9932248162
A136: 136 | B136: -1.441732904 | C136: 0.1287054115 | D136: -0.9916828712
A137: 137 | B137: -1.42914135 | C137: 0.1411817069 | D137: -0.9899836997
A138: 138 | B138: -1.416549797 | C138: 0.1536356186 | D138: -0.9881275711
A139: 139 | B139: -1.403958243 | C139: 0.1660651721 | D139: -0.9861147796
A140: 140 | B140: -1.391366689 | C140: 0.1784683968 | D140: -0.9839456445
A141: 141 | B141: -1.378775136 | C141: 0.1908433262 | D141: -0.9816205096
A142: 142 | B142: -1.366183582 | C142: 0.2031879983 | D142: -0.9791397435
A143: 143 | B143: -1.353592028 | C143: 0.2155004559 | D143: -0.9765037396
A144: 144 | B144: -1.341000474 | C144: 0.227778747 | D144: -0.9737129158
A145: 145 | B145: -1.328408921 | C145: 0.2400209249 | D145: -0.9707677145
A146: 146 | B146: -1.315817367 | C146: 0.2522250486 | D146: -0.9676686028
A147: 147 | B147: -1.303225813 | C147: 0.2643891833 | D147: -0.9644160719
A148: 148 | B148: -1.29063426 | C148: 0.2765114004 | D148: -0.9610106375
A149: 149 | B149: -1.278042706 | C149: 0.2885897779 | D149: -0.9574528396
A150: 150 | B150: -1.265451152 | C150: 0.300622401 | D150: -0.9537432422
A151: 151 | B151: -1.252859599 | C151: 0.3126073618 | D151: -0.9498824334
A152: 152 | B152: -1.240268045 | C152: 0.3245427602 | D152: -0.9458710255
A153: 153 | B153: -1.227676491 | C153: 0.336426704 | D153: -0.9417096542
A154: 154 | B154: -1.215084937 | C154: 0.3482573089 | D154: -0.9373989795
A155: 155 | B155: -1.202493384 | C155: 0.3600326993 | D155: -0.9329396848
A156: 156 | B156: -1.18990183 | C156: 0.3717510084 | D156: -0.928332477
A157: 157 | B157: -1.177310276 | C157: 0.3834103781 | D157: -0.9235780866
A158: 158 | B158: -1.164718723 | C158: 0.3950089599 | D158: -0.9186772674
A159: 159 | B159: -1.152127169 | C159: 0.406544915 | D159: -0.9136307964
A160: 160 | B160: -1.139535615 | C160: 0.4180164144 | D160: -0.9084394736
A161: 161 | B161: -1.126944062 | C161: 0.4294216393 | D161: -0.9031041223
A162: 162 | B162: -1.114352508 | C162: 0.4407587815 | D162: -0.8976255881
A163: 163 | B163: -1.101760954 | C163: 0.4520260436 | D163: -0.8920047398
A164: 164 | B164: -1.0891694 | C164: 0.4632216391 | D164: -0.8862424685
A165: 165 | B165: -1.076577847 | C165: 0.4743437931 | D165: -0.8803396878
A166: 166 | B166: -1.063986293 | C166: 0.4853907422 | D166: -0.8742973335
A167: 167 | B167: -1.051394739 | C167: 0.496360735 | D167: -0.8681163636
A168: 168 | B168: -1.038803186 | C168: 0.5072520322 | D168: -0.8617977581
A169: 169 | B169: -1.026211632 | C169: 0.518062907 | D169: -0.8553425188
A170: 170 | B170: -1.013620078 | C170: 0.5287916455 | D170: -0.848751669
A171: 171 | B171: -1.001028525 | C171: 0.5394365466 | D171: -0.8420262538
A172: 172 | B172: -0.9884369709 | C172: 0.5499959227 | D172: -0.8351673395
A173: 173 | B173: -0.9758454172 | C173: 0.5604680997 | D173: -0.8281760134
A174: 174 | B174: -0.9632538635 | C174: 0.5708514171 | D174: -0.8210533841
A175: 175 | B175: -0.9506623098 | C175: 0.5811442289 | D175: -0.8138005808
A176: 176 | B176: -0.9380707561 | C176: 0.591344903 | D176: -0.8064187533
A177: 177 | B177: -0.9254792024 | C177: 0.6014518223 | D177: -0.7989090721
A178: 178 | B178: -0.9128876487 | C178: 0.6114633843 | D178: -0.7912727277
A179: 179 | B179: -0.900296095 | C179: 0.6213780018 | D179: -0.7835109309
A180: 180 | B180: -0.8877045413 | C180: 0.6311941029 | D180: -0.7756249122
A181: 181 | B181: -0.8751129876 | C181: 0.6409101312 | D181: -0.767615922
A182: 182 | B182: -0.8625214339 | C182: 0.6505245463 | D182: -0.7594852301
A183: 183 | B183: -0.8499298802 | C183: 0.6600358239 | D183: -0.7512341254
A184: 184 | B184: -0.8373383265 | C184: 0.669442456 | D184: -0.7428639162
A185: 185 | B185: -0.8247467728 | C185: 0.6787429513 | D185: -0.7343759296
A186: 186 | B186: -0.8121552191 | C186: 0.6879358353 | D186: -0.7257715113
A187: 187 | B187: -0.7995636654 | C187: 0.6970196503 | D187: -0.7170520254
A188: 188 | B188: -0.7869721117 | C188: 0.7059929563 | D188: -0.7082188544
A189: 189 | B189: -0.774380558 | C189: 0.7148543305 | D189: -0.6992733987
A190: 190 | B190: -0.7617890043 | C190: 0.723602368 | D190: -0.6902170767
A191: 191 | B191: -0.7491974506 | C191: 0.732235682 | D191: -0.6810513241
A192: 192 | B192: -0.7366058969 | C192: 0.7407529035 | D192: -0.6717775941
A193: 193 | B193: =-3.1415926536+(A193-1)*0.0125915537 -> -0.7240143432 | C193: =1*COS(B193)+0 -> 0.7491526822 | D193: =1*SIN(B193)+0+0*COS(B193) -> -0.6623973571
A194: 194 | B194: -0.7114227895 | C194: 0.7574336865 | D194: -0.6529121002
A195: 195 | B195: -0.6988312358 | C195: 0.7655946033 | D195: -0.6433233273
A196: 196 | B196: -0.6862396821 | C196: 0.7736341388 | D196: -0.6336325586
A197: 197 | B197: -0.6736481284 | C197: 0.7815510184 | D197: -0.6238413305
A198: 198 | B198: -0.6610565747 | C198: 0.7893439869 | D198: -0.6139511954
A199: 199 | B199: -0.648465021 | C199: 0.7970118088 | D199: -0.6039637213
A200: 200 | B200: -0.6358734673 | C200: 0.8045532683 | D200: -0.5938804918
... 300 more rows

Sheet XLSTAT_20230811_105755_1_HID (hidden)
A1: 0.3793521964 | B1: 0.4011021644
A2: 0.6897346442 | B2: -0.1337425409
A3: -0.3004799475 | B3: 0.4336500784
A4: 0.54658989 | B4: 0.4558872624
A5: 0.7362634052 | B5: 0.1409874676
A6: -0.3839279711 | B6: 0.7360658073
A7: -0.4217344064 | B7: 0.6449790653
A8: 0.5177895796 | B8: 0.03487469007
A9: 0.625666486 | B9: 0.4850746593
A10: 0.3159905919 | B10: -0.413599332
A11: -0.338569026 | B11: -0.05035652508
A12: -0.1755730786 | B12: -0.3650986428
